Cogmind - Beta 13 *** ADVENTURER MODE // 2024.05.13 @ 19:40:17 // Winter2019/RPGLIKE Player: Gallgagger Result: Destroyed by Executioner with Helical Railgun Performance ------------- Evolutions (9) 4500 Regions Visited (29) 5800 Robots Destroyed (214) 1070 Value Destroyed (13883) 13883 Prototype IDs (17) 340 Alien Tech Used (0) 0 Bonus (7882) 7882 TOTAL SCORE: 33475 Bonus ------- High Alert Combat Kills 921 Follower Combat Kills 2344 Entered Garrisons 1400 Used RIF Installer 4000 Friendly Fire -783 Cogmind --------- Core Integrity 0/2400 Matter 300/300 Energy 287/290 System Corruption 3% Temperature Cool (6) Movement Flying (32) Location -1/Command Parts ------- > --- POWER (3) -------- Light Quantum Reactor > --- PROPULSION (6) --- Improved Diametric Drive Impulse Thruster Array Improved Q-thruster > --- UTILITY (6) ------ Improved Signal Interpreter Experimental Target Analyzer Advanced Hacking Suite Improved System Shield Improved System Shield > --- WEAPON (3) ------- Dispersion Rifle > --- INVENTORY (5) ---- Advanced ECM Suite Advanced ECM Suite Advanced Force Field System Restoration Module Improved Remote Datajack Peak State ------------ > --- POWER ------------ Quantum Reactor Light Quantum Reactor Light Quantum Reactor > --- PROPULSION ------- Diametric Drive Diametric Drive Improved Diametric Drive Impulse Thruster Array Improved Q-thruster > --- UTILITY ---------- Improved Signal Interpreter Advanced Reaction Control System Advanced Hacking Suite Improved System Shield Improved System Shield Relay Coupler [Grunt] > --- WEAPON ----------- Enhanced Quantum Rifle Enhanced Quantum Rifle Improved Remote Datajack > --- INVENTORY -------- Advanced ECM Suite Advanced ECM Suite Advanced Force Field System Restoration Module [Rating: 133] Favorites ----------- Power Improved Deuterium Engine Engine Improved Deuterium Engine Power Core Light Nuclear Core Reactor Light Quantum Reactor Propulsion Diametric Drive Flight Unit Diametric Drive Utility Improved Signal Interpreter Device Improved Trap Extractor Processor Improved Signal Interpreter Hackware Improved System Shield Weapon Quantum Rifle Energy Gun Quantum Rifle Energy Cannon Plasma Cannon Ballistic Gun Coil Gun Ballistic Cannon Gauss Cannon Special Weapon Improved Remote Datajack Slashing Weapon Axe Special Melee Weapon Improved Datajack Build | -11 -10 -10 -9 -9 -9 -8 -8 -8 -7 -7 -7 -7 -7 -7 -7 -5 -5 -4 -4 -4 -4 -4 -4 -3 -2 -2 -2 -1 -1 ------- Run | Yrd Mat Min Mat Min Exi Min Mat Gar Fac Was Fac Gar Sto Gar Rec Fac Gar Fac Was Fac Gar Fac Gar Res Res Gar Res Acc Com Slots Evolved 14 | 4 1 . 1 . . 2 1 2 . . . 2 . . . 1 . . . . . . . . . . . . . Power 2 | 1 . . . . . . . 1 . . . . . . . . . . . . . . . . . . . . . Propulsion 5 | 1 1 . . . . 1 . 1 . . . . . . . 1 . . . . . . . . . . . . . Utility 5 | 1 . . 1 . . 1 1 . . . . 1 . . . . . . . . . . . . . . . . . Weapon 2 | 1 . . . . . . . . . . . 1 . . . . . . . . . . . . . . . . . Parts Attached 153 | 4 7 5 2 . . 2 3 . . 3 2 9 9 8 6 20 3 2 1 3 4 8 11 9 4 2 6 8 12 Power 22 | 2 . . . . . . . . . . 1 . 4 1 . 3 . . 1 1 1 2 . . . . 3 2 1 Engine 5 | 2 . . . . . . . . . . 1 . 2 . . . . . . . . . . . . . . . . Core 12 | . . . . . . . . . . . . . 2 1 . 3 . . 1 1 1 2 . . . . 1 . . Reactor 5 | . . . . . . . . . . . . . . . . . . . . . . . . . . . 2 2 1 Propulsion 40 | . 3 . . . . . . . . 1 1 . 4 4 . 9 . . . . 1 4 3 5 2 . 2 1 . Treads . | . . . . . . . . . . . . . . . . . . . . . . . . . . . . . . Leg . | . . . . . . . . . . . . . . . . . . . . . . . . . . . . . . Wheel . | . . . . . . . . . . . . . . . . . . . . . . . . . . . . . . Hover . | . . . . . . . . . . . . . . . . . . . . . . . . . . . . . . Flight 40 | . 3 . . . . . . . . 1 1 . 4 4 . 9 . . . . 1 4 3 5 2 . 2 1 . Utility 45 | . 2 4 1 . . 1 1 . . 1 . 4 . 2 1 6 2 2 . 1 2 . 2 4 . 1 . 4 4 Device 14 | . 1 3 1 . . . . . . . . . . . 1 . . 1 . . . . . 2 . . . 2 3 Storage . | . . . . . . . . . . . . . . . . . . . . . . . . . . . . . . Processor 3 | . 1 1 . . . . . . . . . . . . . . . . . . . . . . . . . . 1 Hackware 28 | . . . . . . 1 1 . . 1 . 4 . 2 . 6 2 1 . 1 2 . 2 2 . 1 . 2 . Protection . | . . . . . . . . . . . . . . . . . . . . . . . . . . . . . . Artifact . | . . . . . . . . . . . . . . . . . . . . . . . . . . . . . . Weapon 46 | 2 2 1 1 . . 1 2 . . 1 . 5 1 1 5 2 1 . . 1 . 2 6 . 2 1 1 1 7 Energy Gun 19 | . . . . . . . . . . . . 4 1 . 2 1 1 . . 1 . 1 . . 1 1 1 1 4 Energy Cannon 6 | . . . . . . 1 . . . . . . . . 1 . . . . . . 1 . . . . . . 3 Ballistic Gun 9 | 2 2 . . . . . . . . . . . . . . . . . . . . . 5 . . . . . . Ballistic Cannon 4 | . . . 1 . . . 2 . . 1 . . . . . . . . . . . . . . . . . . . Launcher . | . . . . . . . . . . . . . . . . . . . . . . . . . . . . . . Special Weapon 6 | . . . . . . . . . . . . 1 . 1 1 1 . . . . . . 1 . 1 . . . . Impact Weapon . | . . . . . . . . . . . . . . . . . . . . . . . . . . . . . . Slashing Weapon 1 | . . . . . . . . . . . . . . . 1 . . . . . . . . . . . . . . Piercing Weapon . | . . . . . . . . . . . . . . . . . . . . . . . . . . . . . . Special Melee Weapon 1 | . . 1 . . . . . . . . . . . . . . . . . . . . . . . . . . . Unidentified Prototypes 11 | . . 1 . . . . . . . . 1 . 2 . . 2 . . . . . 1 . 1 . . 1 1 1 Corrupted Parts 2 | . . . . . . . . . . . . . . . . 2 . . . . . . . . . . . . . System Corruption 3 | . . . . . . . . . . . . . . . . 3 . . . . . . . . . . . . . Parts Lost 17 | . . . . . . . . . . . . 1 1 1 . . . . . . . 1 4 1 . . 1 . 7 Power 1 | . . . . . . . . . . . . . . . . . . . . . . . . . . . . . 1 Propulsion 7 | . . . . . . . . . . . . . 1 . . . . . . . . 1 2 . . . 1 . 2 Utility 4 | . . . . . . . . . . . . 1 . . . . . . . . . . . 1 . . . . 2 Weapon 5 | . . . . . . . . . . . . . . 1 . . . . . . . . 2 . . . . . 2 Highest Loss Streak 6 | . . . . . . . . . . . . 1 1 1 . . . . . . . 1 4 1 . . 1 . 6 To Critical Strikes 5 | . . . . . . . . . . . . . . . . . . . . . . . 1 . . . . . 4 Average Slot Usage (%) 89 | . 96 100 99 100 100 92 92 80 73 73 81 85 93 97 90 87 89 89 88 92 94 92 89 93 94 94 94 90 85 Engine 8 | . 24 22 20 20 20 17 15 13 13 13 13 11 8 5 5 5 5 5 5 5 5 4 . . . . . . . Core 5 | . . . . . . . . . . . . . 4 10 5 7 11 11 11 10 11 11 16 16 16 16 11 6 . Flight 25 | . 25 33 30 30 30 26 23 20 17 13 21 24 26 28 29 25 27 27 27 27 27 25 23 27 27 27 27 26 26 Device 5 | . 10 11 19 20 20 17 15 13 9 6 6 3 . . . . . 2 5 5 5 5 5 5 5 5 5 10 4 Processor 5 | . 10 11 10 10 10 8 7 6 6 6 6 5 5 5 5 5 5 5 5 5 5 5 5 5 5 5 5 5 5 Hackware 19 | . . . . . . 4 15 13 13 19 20 21 29 29 25 25 23 20 16 21 22 22 22 21 22 22 22 17 20 Energy Gun 5 | . . . . . . . . . 1 . . 9 11 11 7 4 6 11 11 10 11 7 2 . 1 10 11 11 12 Energy Cannon 1 | . . . . . . . . . . . . . . . 1 5 3 . . . . 2 3 . . . . . . Ballistic Gun 2 | . 24 19 4 . . . . . . . . . . . . . . . . . . . 2 11 9 . . . . Ballistic Cannon 1 | . . . 5 10 10 8 6 6 3 5 6 . . . . . . . . . . . . . . . . . . Special Weapon 3 | . . . . . . . . . . . . 2 5 3 4 5 5 5 5 5 5 5 5 5 5 5 5 5 2 Special Melee Weapon 1 | . . 2 10 10 10 8 7 6 6 6 6 3 . . . . . . . . . . . . . . . . . Naked Turns . | . . . . . . . . . . . . . . . . . . . . . . . . . . . . . . Heaviest Build 68 | 10 16 22 24 24 24 26 27 27 27 19 26 32 36 34 34 38 38 37 37 37 37 44 44 42 42 43 52 68 63 Greatest Support 61 | 18 27 27 27 27 27 27 27 27 27 26 32 32 39 38 37 56 56 56 56 56 56 58 58 60 59 59 59 61 61 Greatest Overweight (x) 1 | . . . . . . . . . . . . . . . 1 1 . . . . . . . . . . . 1 1 Average Overweight (x) . | . . . . . . . . . . . . . . . . . . . . . . . . . . . . . . Largest Inventory Capacity 5 | . 2 2 4 4 4 4 4 4 4 4 4 4 5 5 5 5 5 5 5 5 5 5 5 5 5 5 5 5 5 Average Capacity 4 | . . 2 3 4 4 4 4 4 4 4 4 4 4 5 5 5 5 5 5 5 5 5 5 5 5 5 5 5 5 Most Carried 5 | . 2 2 3 2 2 2 2 4 4 4 4 4 5 5 5 5 5 5 4 4 4 5 5 5 5 5 5 5 5 Average Carried 3 | . . 1 1 2 2 2 1 2 3 4 3 2 4 5 4 4 3 4 4 3 3 4 3 4 5 4 5 4 4 Final Capacity 5 | . 2 2 4 4 4 4 4 4 4 4 4 4 5 5 5 5 5 5 5 5 5 5 5 5 5 5 5 5 5 Final Carried 5 | . 2 2 2 2 2 2 2 4 4 4 3 4 5 5 5 3 5 4 4 3 3 5 5 5 5 5 5 5 5 Class Distribution -------------------- 29% | Commander-Sprinter 27% | Hacker-Sprinter 25% | Wizard-Sprinter 8% | Sprinter 6% | Wizard-Scout Dominant Class ---------------- Sprinter | -10/Materials Sprinter | -10/Mines Sprinter | -9/Materials Hacker-Sprinter | -9/Mines Hacker-Sprinter | -9/Exiles Hacker-Sprinter | -8/Mines Hacker-Sprinter | -8/Materials Hacker-Sprinter | -8/Garrison Hacker-Sprinter | -7/Factory Wizard-Sprinter | -7/Waste Wizard-Sprinter | -7/Factory Hacker-Sprinter | -7/Garrison Hacker-Sprinter | -7/Storage Hacker-Sprinter | -7/Garrison Commander-Sprinter | -7/Recycling Commander-Sprinter | -5/Factory Commander-Sprinter | -5/Garrison Commander-Sprinter | -4/Factory Wizard-Sprinter | -4/Waste Wizard-Sprinter | -4/Factory Wizard-Sprinter | -4/Garrison Wizard-Sprinter | -4/Factory Wizard-Sprinter | -4/Garrison Wizard-Sprinter | -3/Research Wizard-Sprinter | -2/Research Wizard-Sprinter | -2/Garrison Wizard-Sprinter | -2/Research Wizard-Sprinter | -1/Access Wizard-Scout | -1/Command Resources | -11 -10 -10 -9 -9 -9 -8 -8 -8 -7 -7 -7 -7 -7 -7 -7 -5 -5 -4 -4 -4 -4 -4 -4 -3 -2 -2 -2 -1 -1 ----------- Run | Yrd Mat Min Mat Min Exi Min Mat Gar Fac Was Fac Gar Sto Gar Rec Fac Gar Fac Was Fac Gar Fac Gar Res Res Gar Res Acc Com Matter Collected 4598 | 225 277 113 128 61 . 215 15 197 101 338 213 398 100 148 105 337 119 58 . 34 106 75 300 317 248 58 . . 312 Remotely . | . . . . . . . . . . . . . . . . . . . . . . . . . . . . . . Salvage Created 9562 | . 248 43 190 86 . 137 196 62 . . 81 363 913 1022 537 1555 92 333 . . 851 284 491 327 244 . . . 1507 Parts 475 | . 30 . 13 5 . 8 15 1 1 1 5 22 25 39 16 71 2 20 10 . 25 12 28 39 11 . 2 . 74 Haulers Intercepted 2 | . . . 1 . . . . . . . . . . . . . . . . . . 1 . . . . . . . Recyclers Shooed 1 | . . . . . . . . . . . . . . . . 1 . . . . . . . . . . . . . Parts Field Recycled . | . . . . . . . . . . . . . . . . . . . . . . . . . . . . . . Retrieved Matter . | . . . . . . . . . . . . . . . . . . . . . . . . . . . . . . Parts Self-Destructed . | . . . . . . . . . . . . . . . . . . . . . . . . . . . . . . Prevented . | . . . . . . . . . . . . . . . . . . . . . . . . . . . . . . Kills | -11 -10 -10 -9 -9 -9 -8 -8 -8 -7 -7 -7 -7 -7 -7 -7 -5 -5 -4 -4 -4 -4 -4 -4 -3 -2 -2 -2 -1 -1 ------- Run | Yrd Mat Min Mat Min Exi Min Mat Gar Fac Was Fac Gar Sto Gar Rec Fac Gar Fac Was Fac Gar Fac Gar Res Res Gar Res Acc Com Combat Hostiles Destroyed 183 | . 11 3 4 3 . 8 9 4 1 1 2 10 14 22 3 25 3 8 1 . 10 3 6 5 2 . 1 . 24 Guns 124 | . 11 2 . . . . . . . . . 6 14 21 3 10 3 8 1 . 9 2 4 5 2 . 1 . 22 Cannons 48 | . . . 3 3 . 7 9 4 1 1 2 4 . . . 12 . . . . . 1 1 . . . . . . AOE 4 | . . 1 1 . . 1 . . . . . . . . . . . . . . . . . . . . . . 1 Classes Destroyed 20 | . 3 1 2 1 . 2 2 . . . 1 1 . 1 . 1 . . 1 . 1 . . 1 . . . . 2 Worker 3 | . . . . . . . . . . . . . . . . . . . . . . . . 3 . . . . . Builder 5 | . . . . . . . 1 . . . . . 1 . . 1 . . . . . . . 2 . . . . . Hauler 2 | . . . 1 . . . . . . . . . . . . . . . . . . 1 . . . . . . . Recycler 7 | . . . . . . 1 . . . . . . . . 4 2 . . . . . . . . . . . . . Operator 2 | . . . 1 . . . . . . . . 1 . . . . . . . . . . . . . . . . . Watcher 12 | . 3 . . . . . . . . . 1 . . . . 5 . 1 . . . . . 1 . . . . 1 Swarmer 44 | . 9 . 2 . . 4 4 . . . . 3 . . . 1 1 7 . . . 1 1 . . . . . 11 Cutter 10 | . . . . . . . . . . . . 3 . 3 . 4 . . . . . . . . . . . . . Grunt 56 | . 2 . 3 2 . 3 3 3 . . . 1 7 13 . 6 2 1 . . 7 . 3 . . . . . . Brawler 1 | . . . . . . . . . . . . . . 1 . . . . . . . . . . . . . . . Duelist 3 | . . . . 1 . . . . . . . . . 1 . 1 . . . . . . . . . . . . . Sentry 30 | . . . . . . . 2 1 1 . 1 1 7 2 3 4 . . . . 1 . 1 . 2 . . . 4 Specialist 1 | . . . . . . . . . . . . . . . . 1 . . . . . . . . . . . . . Hunter 14 | . . . . . . 1 . . . 1 . . . . . 4 . . . . . . 1 1 . . . . 6 Programmer 20 | . . . . . . . . . . . 1 2 . 2 . 4 . . . . 1 2 2 4 . . 1 . 1 Behemoth 1 | . . . . . . . . . . . . . . . . . . . . . 1 . . . . . . . . Compactor 1 | . . . . . . . . . . . . . . . . . . . 1 . . . . . . . . . . Alpha 7 1 | . . . . . . . . . . . . . . . . . . . . . . . . . . . . . 1 Assembled 3 | . . 3 . . . . . . . . . . . . . . . . . . . . . . . . . . . Mutant 1 | . . . . . . . . . . . . . . . . . . . . . . . . . . . . . 1 Best Kill Streak 7 | . 4 2 2 3 . 3 5 3 1 1 1 5 7 7 4 4 2 5 1 . 3 2 1 4 1 . 1 . 6 Combat Bots Only 7 | . 3 2 2 3 . 3 4 3 1 1 1 4 7 7 2 4 2 5 1 . 3 2 1 2 1 . 1 . 6 Max Kills in Single Turn 3 | . 2 1 1 1 . 1 1 1 1 1 1 1 1 1 2 2 1 2 1 . 1 1 1 3 1 . 1 . 2 Gunslinging 1 | . 1 . . . . . . . . . . . . . 1 . . 1 . . . . . . . . . . 1 Exploded 1 | . . 1 1 . . 1 . . . . . . . . . . . . . . . . . . . . . . 1 Melee . | . . . . . . . . . . . . . . . . . . . . . . . . . . . . . . Uniques/NPCs Destroyed . | . . . . . . . . . . . . . . . . . . . . . . . . . . . . . . Combat | -11 -10 -10 -9 -9 -9 -8 -8 -8 -7 -7 -7 -7 -7 -7 -7 -5 -5 -4 -4 -4 -4 -4 -4 -3 -2 -2 -2 -1 -1 -------- Run | Yrd Mat Min Mat Min Exi Min Mat Gar Fac Was Fac Gar Sto Gar Rec Fac Gar Fac Was Fac Gar Fac Gar Res Res Gar Res Acc Com Hostile Shots Fired 1999 | . 25 6 26 7 . 46 92 22 33 6 88 62 193 150 88 157 51 27 . . 110 7 66 76 33 30 9 24 565 Missed 910 | . 9 3 7 2 . 16 33 8 18 5 50 18 96 74 44 66 27 9 . . 45 4 25 44 19 17 7 16 248 Damage Taken 13476 | . 103 30 341 43 . 376 646 159 114 21 255 423 637 796 244 1602 319 287 . . 1207 137 654 574 291 236 103 71 3807 Core 10846 | . 80 24 279 35 . 308 506 129 94 21 203 349 507 637 194 1316 260 232 . . 994 108 512 448 231 193 81 60 3045 Absorbed by Shields 658 | . . . . . . . . . . . . . . . . . 16 . . . 40 . 9 . . . . . 593 Redirected to Core 8543 | . 61 24 192 27 . 215 451 96 63 . 164 232 409 511 153 988 197 186 . . 750 108 438 432 208 154 81 34 2369 Ignored by Resistances 5732 | . 34 9 99 13 . 109 187 48 37 6 87 120 197 236 87 445 95 84 . . 355 36 186 158 78 68 27 34 2897 Regen/Repaired (Parts) 20 | . . . . . . . . . 20 . . . . . . . . . . . . . . . . . . . . Core Remaining (%) 83 | 100 . 97 . . . 80 . 30 . . . . . . 94 . 77 . . . . . 93 100 . . 84 . . Volleys Fired 869 | . 24 6 33 10 . 48 44 33 13 28 30 53 39 78 14 106 27 18 6 2 51 7 50 42 17 8 8 . 74 Largest 3 | . 2 2 1 1 . 1 1 1 1 1 1 2 2 2 2 2 2 2 2 1 2 2 2 2 2 2 2 . 3 Hottest 218 | . 46 46 39 39 . 39 44 48 48 48 48 175 175 175 175 174 174 175 175 7 175 192 192 60 60 130 130 . 218 Shots Fired 1378 | . 48 12 33 10 . 48 44 33 13 27 29 76 75 135 21 194 38 32 12 3 90 13 80 78 31 11 13 . 179 Gun 904 | . 48 12 8 . . . . . 2 . . 52 75 129 10 90 12 28 12 1 82 7 43 72 28 7 10 . 176 Cannon 384 | . . . 25 10 . 48 44 33 11 27 29 12 . . 11 90 13 . . . . 5 26 . . . . . . Launcher . | . . . . . . . . . . . . . . . . . . . . . . . . . . . . . . Special 90 | . . . . . . . . . . . . 12 . 6 . 14 13 4 . 2 8 1 11 6 3 4 3 . 3 Kinetic 431 | . 48 12 33 10 . 48 44 33 11 27 29 12 . . . . . . . . . . 24 72 28 . . . . Thermal 857 | . . . . . . . . . 2 . . 52 75 129 21 180 25 28 12 1 82 12 45 . . 7 10 . 176 Explosive . | . . . . . . . . . . . . . . . . . . . . . . . . . . . . . . Electromagnetic . | . . . . . . . . . . . . . . . . . . . . . . . . . . . . . . Robot Hit Streak 101 | . 11 12 9 6 . 5 17 14 5 16 14 17 24 29 13 37 8 14 22 4 84 92 101 33 18 4 13 . 29 Robot Miss Streak 4 | . 4 1 2 2 . 4 2 1 2 2 1 1 1 1 1 1 1 1 1 . . . 2 1 1 2 . . 1 Penetration Max 1 | . . . . . . . . 1 . 1 . . . . . . . . . . . . . 1 1 . . . . Secondary Targets 20 | . 1 . . . . . . . . . . . 4 5 1 . . 3 . . 1 . . . . . . . 5 Max Gunslinging Chain 1 | . 1 . . . . . . . . . . . 1 1 1 . . 1 . . 1 . . . . . . . 1 Shots Hit Robots 1076 | . 26 8 24 9 . 32 34 24 9 24 24 38 63 102 18 163 24 28 10 2 80 8 59 73 27 4 9 . 154 Core Hits 370 | . 15 4 6 4 . 10 12 6 4 4 5 14 27 36 8 58 4 11 4 . 26 5 16 31 7 . 2 . 51 Critical Kills 7 | . 2 . . . . . . . . . . . . . . 2 . . . . . . 2 . 1 . . . . Critical Parts Destroyed 9 | . . . . . . . . . . . . . . . . . . . . . . . . 4 . . . . 5 Critical Strikes 40 | . 2 . . . . 3 2 4 2 . 2 3 . 3 1 2 . . . . 2 . 2 4 1 . . . 7 Burn 6 | . . . . . . . . . . . . . . 3 1 . . . . . 2 . . . . . . . . Meltdown 3 | . . . . . . . . . . . . . . . . 2 . . . . . . 1 . . . . . . Destroy 15 | . 2 . . . . . . . . . . . . . . . . . . . . . 1 4 1 . . . 7 Blast 16 | . . . . . . 3 2 4 2 . 2 3 . . . . . . . . . . . . . . . . . Melee Attacks 7 | . . . 3 3 . . . . . . . 1 . . . . . . . . . . . . . . . . . Impact . | . . . . . . . . . . . . . . . . . . . . . . . . . . . . . . Slashing . | . . . . . . . . . . . . . . . . . . . . . . . . . . . . . . Piercing . | . . . . . . . . . . . . . . . . . . . . . . . . . . . . . . Sneak Attacks 5 | . . . 2 3 . . . . . . . . . . . . . . . . . . . . . . . . . Combat Hostiles 1 | . . . 1 . . . . . . . . . . . . . . . . . . . . . . . . . . Follow-up Attacks . | . . . . . . . . . . . . . . . . . . . . . . . . . . . . . . Damage Inflicted 26677 | . 453 125 415 129 . 653 858 696 211 662 694 743 1648 2634 475 4328 347 713 322 . 2151 255 1389 1495 494 . 228 . 4559 Guns 19156 | . 453 125 79 . . . . . 20 . . 551 1648 2634 206 2331 212 713 322 . 2151 173 762 1495 494 . 228 . 4559 Cannons 7521 | . . . 336 129 . 653 858 696 191 662 694 192 . . 269 1997 135 . . . . 82 627 . . . . . . Explosions . | . . . . . . . . . . . . . . . . . . . . . . . . . . . . . . Melee . | . . . . . . . . . . . . . . . . . . . . . . . . . . . . . . Ramming . | . . . . . . . . . . . . . . . . . . . . . . . . . . . . . . Kinetic 7343 | . 453 125 415 129 . 653 858 696 191 662 694 192 . . . . . . . . . . 286 1495 494 . . . . Thermal 19334 | . . . . . . . . . 20 . . 551 1648 2634 475 4328 347 713 322 . 2151 255 1103 . . . 228 . 4559 Explosive . | . . . . . . . . . . . . . . . . . . . . . . . . . . . . . . Electromagnetic . | . . . . . . . . . . . . . . . . . . . . . . . . . . . . . . Impact . | . . . . . . . . . . . . . . . . . . . . . . . . . . . . . . Slashing . | . . . . . . . . . . . . . . . . . . . . . . . . . . . . . . Piercing . | . . . . . . . . . . . . . . . . . . . . . . . . . . . . . . Highest Corruption 14 | . . . . . . . . . . 14 14 14 14 14 14 3 3 . 4 4 4 4 4 . . . . . 3 Average Corruption 8 | . . . . . . . . . . 8 14 14 14 14 11 2 3 . 4 4 4 4 4 . . . . . 1 Corruption Purged 6 | . . . . . . . . . . . . . . . 5 . . . . . . . . . . . . . 1 Corruption Blocked . | . . . . . . . . . . . . . . . . . . . . . . . . . . . . . . Effects 178 | . . . . . . . . . . 5 21 21 21 27 37 11 9 . 1 4 9 4 8 . . . . . . Message Errors 41 | . . . . . . . . . . 2 6 3 5 4 9 2 3 . . 1 3 1 2 . . . . . . Matter Fused 32 | . . . . . . . . . . 1 5 4 . 5 7 5 1 . . . 2 . 2 . . . . . . Heat Flow Errors 20 | . . . . . . . . . . . . 3 4 4 5 1 2 . . . . . 1 . . . . . . Energy Discharges 16 | . . . . . . . . . . . 1 3 1 1 5 1 1 . . 2 1 . . . . . . . . Parts Rejected 6 | . . . . . . . . . . . . . 3 . 1 . . . 1 . 1 . . . . . . . . Parts Fused 6 | . . . . . . . . . . . 1 . 1 1 2 . . . . . . 1 . . . . . . . Data Loss (minor) 15 | . . . . . . . . . . 1 2 3 . 2 3 . 2 . . . . 1 1 . . . . . . Data Loss (major) 5 | . . . . . . . . . . . 1 . . . 1 . . . . . . 1 2 . . . . . . Misfires 9 | . . . . . . . . . . . 1 1 2 . 3 1 . . . 1 . . . . . . . . . Alerts 3 | . . . . . . . . . . . 1 1 . . . . . . . . 1 . . . . . . . . Misdirections 7 | . . . . . . . . . . . 1 . 4 1 1 . . . . . . . . . . . . . . Weapon Failures 18 | . . . . . . . . . . 1 2 3 1 9 . 1 . . . . 1 . . . . . . . . Overload Shots . | . . . . . . . . . . . . . . . . . . . . . . . . . . . . . . Overflow Damage 123 | . . . 8 . . 7 2 26 . . 71 8 . . . . 1 . . . . . . . . . . . . Projectiles 123 | . . . 8 . . 7 2 26 . . 71 8 . . . . 1 . . . . . . . . . . . . Explosions . | . . . . . . . . . . . . . . . . . . . . . . . . . . . . . . Melee . | . . . . . . . . . . . . . . . . . . . . . . . . . . . . . . Knockbacks 35 | . . . 1 . . 6 12 10 1 . 5 . . . . . . . . . . . . . . . . . . Impact . | . . . . . . . . . . . . . . . . . . . . . . . . . . . . . . Kinetic 33 | . . . 1 . . 6 12 8 1 . 5 . . . . . . . . . . . . . . . . . . Secondary 2 | . . . . . . . . 2 . . . . . . . . . . . . . . . . . . . . . Self-Inflicted Damage . | . . . . . . . . . . . . . . . . . . . . . . . . . . . . . . Shots . | . . . . . . . . . . . . . . . . . . . . . . . . . . . . . . Rammed . | . . . . . . . . . . . . . . . . . . . . . . . . . . . . . . Targets Rammed . | . . . . . . . . . . . . . . . . . . . . . . . . . . . . . . Kicked . | . . . . . . . . . . . . . . . . . . . . . . . . . . . . . . Crushed . | . . . . . . . . . . . . . . . . . . . . . . . . . . . . . . Highest Temperature 335 | . 65 64 158 145 . 335 22 . . . . 269 332 295 211 119 199 56 56 . 322 205 276 . . . . . 9 Average Temperature 72 | . 24 30 47 63 . 195 13 . . . . 84 98 32 63 45 95 29 27 . 54 49 148 . . . . . 4 Received Heat Transfer 3121 | . 12 . 84 30 . 126 441 108 33 9 99 120 273 447 99 273 54 30 . . 478 . 60 72 45 27 . . 201 Effects 8 | . . . . . . 7 . . . . . . . . . . . . . . 1 . . . . . . . . Shutdowns 1 | . . . . . . 1 . . . . . . . . . . . . . . . . . . . . . . . Energy Bleed 3 | . . . . . . 3 . . . . . . . . . . . . . . . . . . . . . . . Interference 4 | . . . . . . 3 . . . . . . . . . . . . . . 1 . . . . . . . . Siege Activations . | . . . . . . . . . . . . . . . . . . . . . . . . . . . . . . Robots Corrupted . | . . . . . . . . . . . . . . . . . . . . . . . . . . . . . . Combat Hostiles . | . . . . . . . . . . . . . . . . . . . . . . . . . . . . . . Parts Fried 3 | . . . . . . . . . . . . . . . . 1 . . . . 2 . . . . . . . . Impact Corruptions . | . . . . . . . . . . . . . . . . . . . . . . . . . . . . . . Robots Melted 6 | . . . . . . . . . . . . . . 1 . 3 . . . . . . 1 . . . . . 1 Combat Hostiles 6 | . . . . . . . . . . . . . . 1 . 3 . . . . . . 1 . . . . . 1 Parts Melted 60 | . . . . . . . . . . . . 2 6 7 . 27 1 1 . . 5 . 4 . . . . . 7 Heat Transferred 26485 | . . . . . . . . . 74 . . 777 2331 3848 895 6567 509 925 407 . 2812 285 1405 . . . 222 . 5428 Parts Sabotaged . | . . . . . . . . . . . . . . . . . . . . . . . . . . . . . . Parts Stolen . | . . . . . . . . . . . . . . . . . . . . . . . . . . . . . . Parts Stripped . | . . . . . . . . . . . . . . . . . . . . . . . . . . . . . . Power Chain Reactions . | . . . . . . . . . . . . . . . . . . . . . . . . . . . . . . Alert | -11 -10 -10 -9 -9 -9 -8 -8 -8 -7 -7 -7 -7 -7 -7 -7 -5 -5 -4 -4 -4 -4 -4 -4 -3 -2 -2 -2 -1 -1 ------- Run | Yrd Mat Min Mat Min Exi Min Mat Gar Fac Was Fac Gar Sto Gar Rec Fac Gar Fac Was Fac Gar Fac Gar Res Res Gar Res Acc Com Peak Influence 980 | . 350 74 253 164 . 328 428 468 352 162 343 498 694 980 517 555 793 721 128 62 319 313 599 551 321 406 359 228 541 Initial 377 | . . 74 17 76 . . 108 243 212 107 96 210 208 270 377 50 133 360 80 50 26 144 185 267 168 212 198 168 128 Average 272 | . 187 59 129 103 . 176 302 361 254 148 194 399 386 654 131 201 589 502 91 46 140 217 386 399 228 302 253 207 385 Maximum Alert Level 3 | . 1 . 1 . . 1 2 2 1 . 1 2 2 3 2 2 3 3 . . 1 1 2 2 1 2 1 1 2 Low Security (%) 40 | 100 54 100 66 100 . 53 32 . 10 100 62 . 13 . 72 62 17 . 100 100 69 43 2 . 31 . 6 27 8 Level 1 35 | . 45 . 33 . . 46 25 52 89 . 37 47 35 12 4 29 6 43 . . 30 56 53 45 68 97 93 72 43 Level 2 20 | . . . . . . . 41 47 . . . 52 51 39 22 8 27 52 . . . . 44 54 . 2 . . 47 Level 3 3 | . . . . . . . . . . . . . . 48 . . 48 3 . . . . . . . . . . . Level 4 . | . . . . . . . . . . . . . . . . . . . . . . . . . . . . . . Level 5 . | . . . . . . . . . . . . . . . . . . . . . . . . . . . . . . High Security . | . . . . . . . . . . . . . . . . . . . . . . . . . . . . . . Max Security . | . . . . . . . . . . . . . . . . . . . . . . . . . . . . . . Squads Dispatched 27 | . 3 . 3 . . 1 . . . . . . 3 . . 10 . . . . . . 1 3 1 . 1 . 1 Investigation 7 | . 3 . 2 . . . . . . . . . . . . 1 . . . . . . . 1 . . . . . Extermination 3 | . . . . . . . . . . . . . . . . 2 . . . . . . . . . . . . 1 Reinforcement 15 | . . . 1 . . 1 . . . . . . 2 . . 7 . . . . . . . 2 1 . 1 . . Assault 1 | . . . . . . . . . . . . . . . . . . . . . . . 1 . . . . . . Garrison 1 | . . . . . . . . . . . . . 1 . . . . . . . . . . . . . . . . Intercept . | . . . . . . . . . . . . . . . . . . . . . . . . . . . . . . Searches Triggered . | . . . . . . . . . . . . . . . . . . . . . . . . . . . . . . Construction Impeded 2 | . . . . . . 1 . . . . . . . . . 1 . . . . . . . . . . . . . Haulers Reinforced 3 | . . . . . . . . . . . . . 1 . . 1 . . . . . . . 1 . . . . . Active Scanning Responses . | . . . . . . . . . . . . . . . . . . . . . . . . . . . . . . Cargo Convoy Interrupts 1 | . . . . . . . . . . . . . . . . 1 . . . . . . . . . . . . . Stealth | -11 -10 -10 -9 -9 -9 -8 -8 -8 -7 -7 -7 -7 -7 -7 -7 -5 -5 -4 -4 -4 -4 -4 -4 -3 -2 -2 -2 -1 -1 --------- Run | Yrd Mat Min Mat Min Exi Min Mat Gar Fac Was Fac Gar Sto Gar Rec Fac Gar Fac Was Fac Gar Fac Gar Res Res Gar Res Acc Com Distress Signals 22 | . 1 1 4 . . . . . 1 . 1 . 1 . . 3 . . . . . 3 . 3 . . 2 1 1 Communications Jammed 61 | . . . . . . . . . . . . . . . . . . . . . . 12 . 30 5 . 7 7 . Distress Signals 61 | . . . . . . . . . . . . . . . . . . . . . . 12 . 30 5 . 7 7 . Times Spotted 507 | . 17 11 32 3 . 19 12 4 17 7 12 22 31 36 7 62 23 17 7 . 19 9 27 22 11 12 12 5 51 Peak Tracking Total 13 | . 4 8 8 3 . 6 7 4 6 4 3 4 12 7 5 6 9 5 5 . 3 3 6 3 7 9 7 5 13 Tactical Retreats 35 | . 1 3 . . . 3 1 . 8 . 1 . 3 1 1 3 . . . . . 1 1 . . 2 2 1 3 Traps | -11 -10 -10 -9 -9 -9 -8 -8 -8 -7 -7 -7 -7 -7 -7 -7 -5 -5 -4 -4 -4 -4 -4 -4 -3 -2 -2 -2 -1 -1 ------- Run | Yrd Mat Min Mat Min Exi Min Mat Gar Fac Was Fac Gar Sto Gar Rec Fac Gar Fac Was Fac Gar Fac Gar Res Res Gar Res Acc Com Traps Triggered 47 | . . . . . . . . . 2 . . 3 . 2 . 4 3 1 . 1 8 1 8 1 1 . 1 . 11 Indirectly . | . . . . . . . . . . . . . . . . . . . . . . . . . . . . . . Trap Hack Attempts 126 | . . 29 1 . . . 22 7 36 . 20 11 . . . . . . . . . . . . . . . . . Triggered . | . . . . . . . . . . . . . . . . . . . . . . . . . . . . . . Disarmed 26 | . . . 1 . . . 6 1 12 . 6 . . . . . . . . . . . . . . . . . . Reprogrammed 39 | . 6 2 . . . . . 3 1 . 6 4 6 . . 4 . . . 1 . . . . . . . . 6 Reused 7 | . . 1 . . . . . . . . 1 2 . . . 2 . . . . . . . . . . . . 1 Traps Extracted 17 | . . 3 . . . . . 3 . . 8 3 . . . . . . . . . . . . . . . . . Installed 15 | . . 3 2 . . . . . . . 5 5 . . . . . . . . . . . . . . . . . Triggered 6 | . . . . . . . . . . . 1 2 . . . 2 . . . . . . . . . . . . 1 Most Traps Carried 6 | . . 4 2 . . . . . . . 6 4 . . . . . . . . . . . . . . . . . Machines | -11 -10 -10 -9 -9 -9 -8 -8 -8 -7 -7 -7 -7 -7 -7 -7 -5 -5 -4 -4 -4 -4 -4 -4 -3 -2 -2 -2 -1 -1 ---------- Run | Yrd Mat Min Mat Min Exi Min Mat Gar Fac Was Fac Gar Sto Gar Rec Fac Gar Fac Was Fac Gar Fac Gar Res Res Gar Res Acc Com Machines Disabled 43 | . 1 . 1 1 . . 2 2 . . 1 4 2 5 1 3 3 . . . 5 2 5 1 . 3 . . 1 Max in Single Turn 1 | . 1 . 1 1 . . 1 1 . . 1 1 1 1 1 1 1 . . . 1 . 1 . . 1 . . 1 Garrison Relay 23 | . . . . . . . . 2 . . . 3 . 3 . . 4 . . . 3 . 5 . . 3 . . . Phase Generator 1 | . . . . . . . . . . . . . . . . . . . . . . . . . . 1 . . . Machines Repaired . | . . . . . . . . . . . . . . . . . . . . . . . . . . . . . . Machines Dismantled . | . . . . . . . . . . . . . . . . . . . . . . . . . . . . . . Machines Sabotaged . | . . . . . . . . . . . . . . . . . . . . . . . . . . . . . . Overloaded Fab Kills . | . . . . . . . . . . . . . . . . . . . . . . . . . . . . . . Hacking | -11 -10 -10 -9 -9 -9 -8 -8 -8 -7 -7 -7 -7 -7 -7 -7 -5 -5 -4 -4 -4 -4 -4 -4 -3 -2 -2 -2 -1 -1 --------- Run | Yrd Mat Min Mat Min Exi Min Mat Gar Fac Was Fac Gar Sto Gar Rec Fac Gar Fac Was Fac Gar Fac Gar Res Res Gar Res Acc Com Machines Accessed 117 | . 9 2 3 . 1 . 9 1 9 . 9 2 12 1 8 10 1 4 . 2 2 4 2 5 5 1 3 4 8 Terminals 95 | . 7 . 3 . . . 7 1 7 . 5 2 11 1 6 8 1 3 . 1 2 3 2 5 4 1 3 4 8 Fabricators 3 | . . . . . . . . . . . 1 . . . . 1 . 1 . . . . . . . . . . . Repair Stations 3 | . . . . . . . 1 . 1 . 1 . . . . . . . . . . . . . . . . . . Recycling Units 4 | . 2 . . . . . . . . . . . . . 2 . . . . . . . . . . . . . . Scanalyzers . | . . . . . . . . . . . . . . . . . . . . . . . . . . . . . . Garrison Access 9 | . . . . . . . 1 . 1 . 2 . 1 . . 1 . . . 1 . 1 . . 1 . . . . Total Hacks 477 | . 23 2 12 . 4 . 24 2 35 . 56 4 47 2 47 55 1 23 . 11 3 12 4 30 24 2 9 5 40 Successful 339 | . 17 2 7 . 4 . 21 2 28 . 40 2 33 1 30 44 1 16 . 9 2 11 1 14 19 1 4 5 25 Failed 136 | . 6 . 5 . . . 3 . 7 . 14 2 14 1 17 11 . 7 . 2 1 1 3 16 5 1 5 . 15 Catastrophic 20 | . 1 . 1 . . . . . 1 . 1 2 2 1 2 2 . . . . . . . 4 2 . . . 1 Database Lockouts 2 | . . . . . . . . . . . 2 . . . . . . . . . . . . . . . . . . Manual 307 | . 19 . 7 . . . 19 1 24 . 25 2 25 2 38 31 1 13 . 4 2 8 3 26 18 2 9 2 26 Terminals 408 | . 21 . 12 . . . 18 2 28 . 43 4 43 2 36 44 1 20 . 7 3 11 4 30 23 2 9 5 40 Fabricators 14 | . . . . . . . . . . . 4 . . . . 7 . 3 . . . . . . . . . . . Repair Stations 5 | . . . . . . . 1 . 3 . 1 . . . . . . . . . . . . . . . . . . Recycling Units 13 | . 2 . . . . . . . . . . . . . 11 . . . . . . . . . . . . . . Scanalyzers . | . . . . . . . . . . . . . . . . . . . . . . . . . . . . . . Garrison Access 31 | . . . . . . . 5 . 4 . 8 . 4 . . 4 . . . 4 . 1 . . 1 . . . . Terminal Hacks 171 | . 8 2 4 . 4 . 5 2 12 . 18 2 20 1 10 20 1 9 . 5 2 6 1 6 10 1 1 4 17 Record 48 | . . . . . 4 . 2 . . . 8 . 6 . 1 6 . 1 . 3 . 3 . 2 6 . . . 6 Part Schematic 5 | . . . . . . . . . 1 . . . . . 1 3 . . . . . . . . . . . . . Robot Schematic 7 | . . . . . . . 1 . 3 . 2 . . . . . . . . . . . . . . . . . 1 Robot Analysis 7 | . . . 1 . . . . . . . 1 . . . . 3 . . . . . . . 1 1 . . . . Prototype ID Bank 2 | . 1 . . . . . . . 1 . . . . . . . . . . . . . . . . . . . . Open Door 12 | . . 2 . . . . . . . . . . 5 . . . . . . . 1 . 1 . . . . 3 . Level Access Points 5 | . . . . . . . . . . . . . . . . . . 1 . . . 1 . 1 1 . 1 . . Branch Access Points 5 | . . . . . . . . . . . 1 . . . . . . . . . . 1 . 1 1 . . 1 . Emergency Access Points 3 | . . . . . . . . 1 . . . 1 . . . . . . . . . . . . . . . . 1 Machine Index 4 | . . . . . . . . . 1 . 1 . . . . 1 . 1 . . . . . . . . . . . Terminal Index 7 | . 1 . 1 . . . . . 1 . . . 1 . . 1 . . . . . . . 1 . . . . 1 Fabricator Index 1 | . . . . . . . . . . . . . . . . 1 . . . . . . . . . . . . . Recycling Unit Index 1 | . . . . . . . . . 1 . . . . . . . . . . . . . . . . . . . . Garrison Index 1 | . . . . . . . . . 1 . . . . . . . . . . . . . . . . . . . . Alert Level 7 | . . . . . . . . . . . . . 2 . 1 . . 3 . . . . . . 1 . . . . Unreport Threat 14 | . . . 1 . . . . . . . . . 3 . 5 2 . 3 . . . . . . . . . . . Locate Traps 7 | . 2 . . . . . . . 1 . 1 . 1 . . 1 . . . . . . . . . . . . 1 Reprogram Traps 8 | . 1 . . . . . . . . . 2 . 1 . . 2 . . . 1 . . . . . . . . 1 Surveillance Status 1 | . . . . . . . . . . . . . 1 . . . . . . . . . . . . . . . . Transport Status 1 | . . . . . . . . . . . . . . . 1 . . . . . . . . . . . . . . Recall Investigation 1 | . 1 . . . . . . . . . . . . . . . . . . . . . . . . . . . . Hauler Manifests 1 | . . . 1 . . . . . . . . . . . . . . . . . . . . . . . . . . Registered Components 1 | . . . . . . . . . 1 . . . . . . . . . . . . . . . . . . . . Zone Layout 14 | . 1 . . . . . 2 . 1 . 2 . . . 1 . . . . 1 . 1 . . . . . . 5 Garrison Registry 7 | . 1 . . . . . . 1 . . . 1 . 1 . . 1 . . . 1 . . . . 1 . . . Disengage Seal 1 | . . . . . . . . . . . . . . . . . . . . . . . . . . . . . 1 Fabricator Hacks 9 | . . . . . . . . . . . . . . . . 7 . 2 . . . . . . . . . . . Load Schematic 4 | . . . . . . . . . . . . . . . . 3 . 1 . . . . . . . . . . . Build 5 | . . . . . . . . . . . . . . . . 4 . 1 . . . . . . . . . . . Repair Station Hacks 3 | . . . . . . . . . 3 . . . . . . . . . . . . . . . . . . . . Scan Component 1 | . . . . . . . . . 1 . . . . . . . . . . . . . . . . . . . . Repair 1 | . . . . . . . . . 1 . . . . . . . . . . . . . . . . . . . . Refit 1 | . . . . . . . . . 1 . . . . . . . . . . . . . . . . . . . . Recycling Unit Hacks 1 | . . . . . . . . . . . . . . . 1 . . . . . . . . . . . . . . Process 1 | . . . . . . . . . . . . . . . 1 . . . . . . . . . . . . . . Scanalyzer . | . . . . . . . . . . . . . . . . . . . . . . . . . . . . . . Garrison Access Hacks 10 | . . . . . . . 2 . 1 . 2 . 1 . . 1 . . . 1 . 1 . . 1 . . . . Unlock Access 9 | . . . . . . . 1 . 1 . 2 . 1 . . 1 . . . 1 . 1 . . 1 . . . . Coupler Status 1 | . . . . . . . 1 . . . . . . . . . . . . . . . . . . . . . . Unauthorized Hacks 144 | . 9 . 3 . . . 14 . 12 . 20 . 12 . 18 16 . 5 . 3 . 4 . 8 8 . 3 1 8 Terminals 108 | . 7 . 3 . . . 11 . 9 . 9 . 9 . 10 13 . 4 . 1 . 4 . 8 8 . 3 1 8 Track 7 | . 2 . . . . . . . . . 1 . . . 1 1 . . . . . . . 1 . . . . 1 Assimilate 25 | . . . 1 . . . 3 . 3 . 4 . 3 . 2 3 . 1 . . . 2 . 1 2 . . . . Botnet 66 | . 5 . 2 . . . 6 . 5 . 4 . 6 . 4 8 . 3 . 1 . 2 . 5 4 . 3 1 7 Detonate 1 | . . . . . . . . . . . . . . . 1 . . . . . . . . . . . . . . Disrupt 4 | . . . . . . . 1 . . . . . . . 1 1 . . . . . . . . 1 . . . . Operators 5 | . . . . . . . 1 . 1 . . . . . 1 . . . . . . . . 1 1 . . . . Fabricators 5 | . . . . . . . . . . . 4 . . . . . . 1 . . . . . . . . . . . Prioritize 2 | . . . . . . . . . . . 1 . . . . . . 1 . . . . . . . . . . . Liberate 1 | . . . . . . . . . . . 1 . . . . . . . . . . . . . . . . . . Fabnet 1 | . . . . . . . . . . . 1 . . . . . . . . . . . . . . . . . . Haulers 1 | . . . . . . . . . . . 1 . . . . . . . . . . . . . . . . . . Repair Stations 2 | . . . . . . . 1 . . . 1 . . . . . . . . . . . . . . . . . . Mechanics 2 | . . . . . . . 1 . . . 1 . . . . . . . . . . . . . . . . . . Recycling Units 10 | . 2 . . . . . . . . . . . . . 8 . . . . . . . . . . . . . . Monitor 2 | . . . . . . . . . . . . . . . 2 . . . . . . . . . . . . . . Reject 2 | . . . . . . . . . . . . . . . 2 . . . . . . . . . . . . . . Recyclers 2 | . . . . . . . . . . . . . . . 2 . . . . . . . . . . . . . . Mask 2 | . . . . . . . . . . . . . . . 2 . . . . . . . . . . . . . . Tunnel 2 | . 2 . . . . . . . . . . . . . . . . . . . . . . . . . . . . Scanalyzers . | . . . . . . . . . . . . . . . . . . . . . . . . . . . . . . Garrison Access 19 | . . . . . . . 2 . 3 . 6 . 3 . . 3 . . . 2 . . . . . . . . . Broadcast 6 | . . . . . . . . . 1 . 2 . 1 . . 1 . . . 1 . . . . . . . . . Reprogram 6 | . . . . . . . 1 . 1 . 2 . 1 . . 1 . . . . . . . . . . . . . Watchers 7 | . . . . . . . 1 . 1 . 2 . 1 . . 1 . . . 1 . . . . . . . . . Data Cores Recovered 1 | . . . 1 . . . . . . . . . . . . . . . . . . . . . . . . . . Used 1 | . . . 1 . . . . . . . . . . . . . . . . . . . . . . . . . . Hacking Detections 77 | . 6 . 3 . . . 9 1 9 . 5 1 7 . 7 6 . 3 . 2 1 2 1 5 3 . 2 . 4 Full Trace Events 5 | . 1 . 2 . . . . . . . . . . . 1 . . . . . . . . 1 . . . . . Feedback Events 1 | . . . . . . . . . . . . . . . . . . . . . . . . 1 . . . . . Hackware Fried 1 | . . . . . . . . . . . . . . . . . . . . . . . . 1 . . . . . Feedback Blocked . | . . . . . . . . . . . . . . . . . . . . . . . . . . . . . . Robot Schematics Acquired 7 | . . . . . . . 1 . 3 . 2 . . . . . . . . . . . . . . . . . 1 Robots Built 9 | . . . . . . . . . . . . . . . . 7 . 2 . . . . . . . . . . . Authchips 4 | . . . . . . . . . . . . . . . . 3 . 1 . . . . . . . . . . . Time 302 | . . . . . . . . . . . . . . . . 218 . 84 . . . . . . . . . . . Total Robot Build Rating 53 | . . . . . . . . . . . . . . . . 41 . 12 . . . . . . . . . . . Part Schematics Acquired 5 | . . . . . . . . . 1 . . . . . 1 3 . . . . . . . . . . . . . Parts Built . | . . . . . . . . . . . . . . . . . . . . . . . . . . . . . . Authchips . | . . . . . . . . . . . . . . . . . . . . . . . . . . . . . . Time . | . . . . . . . . . . . . . . . . . . . . . . . . . . . . . . Total Part Build Rating . | . . . . . . . . . . . . . . . . . . . . . . . . . . . . . . Parts Repaired 1 | . . . . . . . . . 1 . . . . . . . . . . . . . . . . . . . . Time 32 | . . . . . . . . . 32 . . . . . . . . . . . . . . . . . . . . Parts Recycled . | . . . . . . . . . . . . . . . . . . . . . . . . . . . . . . Recycled Matter 42 | . . . . . . . . . . . . . . . 42 . . . . . . . . . . . . . . Retrieved Matter . | . . . . . . . . . . . . . . . . . . . . . . . . . . . . . . Retrieved Components . | . . . . . . . . . . . . . . . . . . . . . . . . . . . . . . Parts Scanalyzed . | . . . . . . . . . . . . . . . . . . . . . . . . . . . . . . Part Schematics Acquired . | . . . . . . . . . . . . . . . . . . . . . . . . . . . . . . Parts Damaged . | . . . . . . . . . . . . . . . . . . . . . . . . . . . . . . Bothacking | -11 -10 -10 -9 -9 -9 -8 -8 -8 -7 -7 -7 -7 -7 -7 -7 -5 -5 -4 -4 -4 -4 -4 -4 -3 -2 -2 -2 -1 -1 ------------ Run | Yrd Mat Min Mat Min Exi Min Mat Gar Fac Was Fac Gar Sto Gar Rec Fac Gar Fac Was Fac Gar Fac Gar Res Res Gar Res Acc Com Used RIF Installer 8 | . . . . . . . . 1 . . . 1 . 2 . . 1 . . . 1 . 1 . . 1 . . . Code Merge 1 | . . . . . . . . . . . . . . . . . . . . . 1 . . . . . . . . Command Fork 1 | . . . . . . . . . . . . . . 1 . . . . . . . . . . . . . . . Threat Obfuscator 1 | . . . . . . . . . . . . . . . . . 1 . . . . . . . . . . . . Signal Jammer 1 | . . . . . . . . . . . . . . . . . . . . . . . 1 . . . . . . Zone Cloak 1 | . . . . . . . . . . . . . . . . . . . . . . . . . . 1 . . . Patrol Navigation 1 | . . . . . . . . . . . . 1 . . . . . . . . . . . . . . . . . Autooverride 1 | . . . . . . . . . . . . . . 1 . . . . . . . . . . . . . . . Robots Hacked 84 | . . . 1 3 . . . . . . . 10 . 5 . 12 12 4 . 2 7 1 9 6 1 5 2 . 4 Non-combat 7 | . . . . 3 . . . . . . . . . . . . . . . . . . . 1 1 . 2 . . Combat 77 | . . . 1 . . . . . . . . 10 . 5 . 12 12 4 . 2 7 1 9 5 . 5 . . 4 Autooverrided 2 | . . . . . . . . . . . . . . . . . . . . . . . . . . 1 . . 1 Robot Hacks Applied 84 | . . . 1 3 . . . . . . . 11 . 5 . 12 11 4 . 2 7 1 9 6 2 4 3 . 3 parse_system 3 | . . . 1 1 . . . . . . . . . . . . . . . . . . . 1 . . . . . no_distress 2 | . . . . 2 . . . . . . . . . . . . . . . . . . . . . . . . . map_route 1 | . . . . . . . . . . . . . . . . . . . . . . . . . . . 1 . . mark_security 1 | . . . . . . . . . . . . . . . . . . . . . . . . . 1 . . . . reboot_propulsion 1 | . . . . . . . . . . . . . . . . 1 . . . . . . . . . . . . . link_complan 1 | . . . . . . . . . . . . . . . . 1 . . . . . . . . . . . . . overload_power 6 | . . . . . . . . . . . . . . 2 . . 2 2 . . . . . . . . . . . amplify_resonance 11 | . . . . . . . . . . . . . . . . 2 4 . . . 1 1 2 . . . 1 . . disable_weapons 1 | . . . . . . . . . . . . . . . . 1 . . . . . . . . . . . . . reboot_system 1 | . . . . . . . . . . . . . . . . 1 . . . . . . . . . . . . . go_dormant 1 | . . . . . . . . . . . . 1 . . . . . . . . . . . . . . . . . streamctrl_high 1 | . . . . . . . . . . . . . . . . . . . . . . . 1 . . . . . . formatsys_high 53 | . . . . . . . . . . . . 10 . 3 . 6 5 2 . 2 6 . 5 5 1 4 1 . 3 formatsys_deep 1 | . . . . . . . . . . . . . . . . . . . . . . . 1 . . . . . . Relay Couplers Released 37 | . . . . . . . . 4 . . . 6 . 5 . . 7 . . . 4 . 7 . . 4 . . . Machine Destruction 37 | . . . . . . . . 4 . . . 6 . 5 . . 7 . . . 4 . 7 . . 4 . . . Attached 15 | . . . . . . . . . . . . 3 . 2 . 1 2 . . 1 2 . 2 1 . 1 . . . Merged Code Value 71 | . . . . . . . . . . . . . . . . . . . . . 25 . 46 . . . . . . Fabnet Peak Effective % 1 | . . . . . . . . . . . . . . . . 1 1 . . . . . . . . . . . . Autooverrided 1 | . . . . . . . . . . . . . . . . . 1 . . . . . . . . . . . . Robots Rewired 28 | . . . . . . . . . . . . . 2 . 23 . 1 . . . . . 2 . . . . . . Allies Hacked 6 | . . . . . . . . . . . . . . . . 4 . . 1 . . . 1 . . . . . . Hacks Repelled . | . . . . . . . . . . . . . . . . . . . . . . . . . . . . . . Allies | -11 -10 -10 -9 -9 -9 -8 -8 -8 -7 -7 -7 -7 -7 -7 -7 -5 -5 -4 -4 -4 -4 -4 -4 -3 -2 -2 -2 -1 -1 -------- Run | Yrd Mat Min Mat Min Exi Min Mat Gar Fac Was Fac Gar Sto Gar Rec Fac Gar Fac Was Fac Gar Fac Gar Res Res Gar Res Acc Com Total Allies 138 | . . 6 7 . . 1 1 . 1 1 2 10 10 3 23 22 7 4 1 2 7 1 12 5 1 6 1 . 4 Largest Group 29 | . . 5 7 . . 1 1 1 2 1 2 6 10 2 23 29 25 24 4 1 4 5 4 4 1 4 5 . 3 Highest-Rated Group 886 | . . 93 114 . . 11 10 9 35 31 36 82 173 24 539 820 880 886 213 56 172 198 195 199 41 232 273 . 174 Highest-Rated Ally 141 | . . 31 31 . . 11 10 9 26 31 26 26 29 12 40 54 85 54 141 56 49 49 51 64 41 58 58 . 58 Total Orders 47 | . . 1 6 . . . . . 2 . 1 . . . 8 23 3 2 . . . . . . 1 . . . . STAY 16 | . . . . . . . . . 1 . 1 . . . 3 9 . 1 . . . . . . 1 . . . . ROAM 1 | . . . . . . . . . . . . . . . . . 1 . . . . . . . . . . . . FOLLOW 10 | . . . . . . . . . 1 . . . . . 1 8 . . . . . . . . . . . . . GUARD 6 | . . . . . . . . . . . . . . . . 5 . 1 . . . . . . . . . . . TUNNEL 2 | . . . . . . . . . . . . . . . . . 2 . . . . . . . . . . . . DROP 3 | . . . . . . . . . . . . . . . 2 1 . . . . . . . . . . . . . PICKUP 2 | . . . . . . . . . . . . . . . 2 . . . . . . . . . . . . . . RETURN 7 | . . 1 6 . . . . . . . . . . . . . . . . . . . . . . . . . . Ally Attacks 710 | . . 1 92 . . 21 1 . . 37 . 32 71 18 7 147 26 19 48 . 12 13 52 65 . 11 19 . 18 Total Damage 12791 | . . 22 712 . . 110 5 . . 539 . 397 982 240 172 2869 885 608 200 . 303 447 1472 1353 . 274 625 . 576 Kills 89 | . . . 12 . . 2 . . . 2 . 2 10 2 2 19 9 5 . . 1 2 9 6 . 2 3 . 1 Allies Corrupted 3 | . . . . . . . . . . . . 1 . . . 1 . . . . . . 1 . . . . . . Allies Melted . | . . . . . . . . . . . . . . . . . . . . . . . . . . . . . . Intel | -11 -10 -10 -9 -9 -9 -8 -8 -8 -7 -7 -7 -7 -7 -7 -7 -5 -5 -4 -4 -4 -4 -4 -4 -3 -2 -2 -2 -1 -1 ------- Run | Yrd Mat Min Mat Min Exi Min Mat Gar Fac Was Fac Gar Sto Gar Rec Fac Gar Fac Was Fac Gar Fac Gar Res Res Gar Res Acc Com Robot Analysis Total 7 | . . . 1 . . . . . . . 1 . . . . 3 . . . . . . . 1 1 . . . . Derelict Logs Recovered 5 | . . 2 . 3 . . . . . . . . . . . . . . . . . . . . . . . . . Drone Launches 75 | . . 1 52 . . 21 1 . . . . . . . . . . . . . . . . . . . . . . Drone Recoveries 70 | . . 1 49 . . 19 1 . . . . . . . . . . . . . . . . . . . . . . Exploration | -11 -10 -10 -9 -9 -9 -8 -8 -8 -7 -7 -7 -7 -7 -7 -7 -5 -5 -4 -4 -4 -4 -4 -4 -3 -2 -2 -2 -1 -1 ------------- Run | Yrd Mat Min Mat Min Exi Min Mat Gar Fac Was Fac Gar Sto Gar Rec Fac Gar Fac Was Fac Gar Fac Gar Res Res Gar Res Acc Com Turns Passed 11079 | 24 448 273 345 245 38 280 337 187 609 146 369 474 372 467 1042 1882 408 214 92 127 339 152 487 422 230 92 171 112 695 Spaces Moved 21438 | 36 1120 609 550 696 129 476 549 304 1264 243 725 826 713 690 1444 3340 783 484 244 318 450 494 732 923 744 246 594 426 1286 Core 56 | 36 20 . . . . . . . . . . . . . . . . . . . . . . . . . . . . Treads . | . . . . . . . . . . . . . . . . . . . . . . . . . . . . . . Legs . | . . . . . . . . . . . . . . . . . . . . . . . . . . . . . . Wheels . | . . . . . . . . . . . . . . . . . . . . . . . . . . . . . . Hover . | . . . . . . . . . . . . . . . . . . . . . . . . . . . . . . Flight 21382 | . 1100 609 550 696 129 476 549 304 1264 243 725 826 713 690 1444 3340 783 484 244 318 450 494 732 923 744 246 594 426 1286 Fastest Speed 20 | 50 29 29 29 29 29 29 29 29 29 29 26 26 20 23 23 20 20 20 20 20 20 20 20 21 21 21 21 21 23 Average Speed 25 | 50 31 29 29 29 29 29 29 29 29 31 28 26 24 23 24 24 20 20 20 20 20 20 22 21 21 21 21 21 23 Slowest Speed 99 | 50 50 29 29 29 29 29 29 29 32 32 29 26 26 26 72 77 20 20 20 20 20 27 27 27 24 21 24 99 97 Overloaded Moves 5 | . . . . . . . . . . . . . 3 . 2 . . . . . . . . . . . . . . Propulsion Burnouts . | . . . . . . . . . . . . . . . . . . . . . . . . . . . . . . Robots Hopped 240 | . 12 5 2 . . 2 2 2 6 . 4 . 18 4 27 79 2 . . 1 . 13 1 12 8 1 16 6 17 Cave-ins Triggered . | . . . . . . . . . . . . . . . . . . . . . . . . . . . . . . Exploration Rate (%) 51 | 4 93 78 46 97 52 86 45 34 30 99 18 78 89 61 99 42 73 14 85 8 48 16 65 21 31 46 21 16 36 Regions Visited 29 Branch Regions 7 Pre-discovered Areas 5 | . 2 1 . 1 1 . . . . . . . . . . . . . . . . . . . . . . . . Known Exits Taken 17 | . 1 1 1 1 1 1 1 . . . 1 . 1 . 1 1 . . . 1 . 1 . 1 1 . 1 1 . Unknown Exits Taken 1 | 1 . . . . . . . . . . . . . . . . . . . . . . . . . . . . . Scrap Searched 7 | . . 3 . 2 . 2 . . . . . . . . . . . . . . . . . . . . . . . Spaces Dug 9 | . . . 1 . . . . . . . . . 1 . . 2 . . . . . 2 . . . . 3 . . Terrain Destroyed 59 | . . . 1 11 . 2 2 . 2 1 4 . 6 . . 10 . 3 1 1 . 3 5 2 1 . 3 . 1 Melee . | . . . . . . . . . . . . . . . . . . . . . . . . . . . . . . Projectile 47 | . . . 1 . . 2 2 . 2 1 4 . 6 . . 10 . 3 1 1 . 3 5 1 1 . 3 . 1 AOE 11 | . . . . 11 . . . . . . . . . . . . . . . . . . . . . . . . . Terrain Rammed . | . . . . . . . . . . . . . . . . . . . . . . . . . . . . . . Walls Destroyed . | . . . . . . . . . . . . . . . . . . . . . . . . . . . . . . Machines Disabled . | . . . . . . . . . . . . . . . . . . . . . . . . . . . . . . Actions | -11 -10 -10 -9 -9 -9 -8 -8 -8 -7 -7 -7 -7 -7 -7 -7 -5 -5 -4 -4 -4 -4 -4 -4 -3 -2 -2 -2 -1 -1 --------- Run | Yrd Mat Min Mat Min Exi Min Mat Gar Fac Was Fac Gar Sto Gar Rec Fac Gar Fac Was Fac Gar Fac Gar Res Res Gar Res Acc Com Total 25611 | 39 1158 690 701 728 128 566 679 367 1479 282 855 1018 822 862 2082 4139 1003 574 275 378 619 515 980 1057 779 276 610 440 1510 Wait 2299 | . 10 34 90 17 . 32 60 24 165 2 76 40 27 27 521 659 149 57 13 56 50 11 48 47 18 14 8 . 44 Move 20955 | 35 1095 598 545 695 128 471 544 300 1252 242 716 825 677 682 1394 3188 779 484 243 315 449 468 729 900 728 243 564 413 1253 Hop 216 | . 12 5 2 . . 2 2 1 6 . 4 . 17 3 22 72 1 . . 1 . 12 1 10 7 1 13 6 16 Pick Up 38 | . 2 2 2 . . . . 2 . . . 8 1 . 1 1 3 . . . 2 1 6 1 . 1 . 3 2 Fast Attach 108 | 4 5 3 1 . . 2 1 . . 2 2 3 8 4 5 13 2 1 1 2 2 8 7 8 3 1 6 4 10 Attach 12 | . . . 1 . . . 1 . . . . 3 . . 1 3 . 1 . 1 . . 1 . . . . . . Detach 9 | . . 1 . . . . . . 1 . . . . . 1 . . . . . . 1 2 . . . . 1 2 Swap 34 | . 2 2 . . . . 1 . . 1 . 3 1 4 . 4 1 . . . 2 . 3 1 1 1 1 4 2 Drop 89 | . 2 5 2 . . 1 1 . 2 . 2 7 4 4 5 7 3 . . . . 4 6 7 4 2 2 9 10 Fire 869 | . 24 6 33 10 . 48 44 33 13 28 30 53 39 78 14 106 27 18 6 2 51 7 50 42 17 8 8 . 74 Melee 7 | . . . 3 3 . . . . . . . 1 . . . . . . . . . . . . . . . . . Ram . | . . . . . . . . . . . . . . . . . . . . . . . . . . . . . . Kick . | . . . . . . . . . . . . . . . . . . . . . . . . . . . . . . Crush . | . . . . . . . . . . . . . . . . . . . . . . . . . . . . . . Escape Stasis 218 | . . . . . . . . . . . . 36 . 18 . 8 15 . . . 29 . 65 . . . . . 47 Rewire 180 | . . . . . . . . . . . . 8 5 3 105 11 9 3 . 1 5 . 15 5 1 5 1 . 3 Trap 141 | . . 32 3 . . . 22 7 36 . 25 16 . . . . . . . . . . . . . . . . . Miscellaneous 436 | . 6 2 19 3 . 10 3 . 4 7 . 15 43 39 13 67 14 10 12 . 29 3 47 36 . . 7 . 47 Route ------- -11/Scrapyard -10/Materials (discovered 3 exits: *Mat x2 / *Min) -10/Mines -9/Materials -9/Mines (discovered 3 exits: *Mat x2 / *Exi) -9/Exiles (discovered 2 exits: *Min x2) -8/Mines (discovered 2 exits: *Mat x2) -8/Materials (discovered 2 exits: *Fac / Gar) -8/Garrison (discovered 4 exits: *Fac x3 / [Mat]) -7/Factory (discovered 4 exits: *Fac x2 / *Low / Gar) -7/Waste -7/Factory (discovered 5 exits: Sto / Low x2 / Gar / Gar) -7/Garrison (discovered 3 exits: *Sto x3) -7/Storage (discovered 3 exits: *Fac / *Rec / Gar) -7/Garrison (discovered 3 exits: *Rec x3) -7/Recycling -5/Factory (discovered 3 exits: *Upp x2 / Gar) -5/Garrison (discovered 3 exits: *Fac x3) -4/Factory (discovered 4 exits: Res x4) -4/Waste -4/Factory -4/Garrison (discovered 4 exits: *Fac x4) -4/Factory (discovered 8 exits: Res x4 / Upp x2 / *Arm / Gar) -4/Garrison (discovered 3 exits: *Res x3) -3/Research (discovered 5 exits: *Res x3 / Tes x2) -2/Research (discovered 6 exits: Acc x3 / Qua x2 / Gar) -2/Garrison (discovered 3 exits: *Res x3) -2/Research (discovered 4 exits: *Acc x3 / *Qua) -1/Access -1/Command (discovered 1 exit: [*Sur]) History --------- Turn | Location | Event 1 | -11/Scrapyard | Upgraded with Power slot (x1) 1 | -11/Scrapyard | Upgraded with Propulsion slot (x1) 1 | -11/Scrapyard | Upgraded with Utility slot (x1) 1 | -11/Scrapyard | Upgraded with Weapon slot (x1) 8 | -11/Scrapyard | Discovered new exit (range 17) 25 | -11/Scrapyard | Entered Materials 67 | -10/Materials | Discovered new exit (range 5) 75 | -10/Materials | Identified exit to Materials 154 | -10/Materials | Discovered new exit (range 11) 262 | -10/Materials | Identified exit to Mines 304 | -10/Materials | Build established: Sprinter 310 | -10/Materials | Discovered exit to Materials (range 17) 397 | -10/Materials | Reached level 2 400 | -10/Materials | Upgraded with Propulsion slot (x1) 473 | -10/Materials | Entered Mines 485 | -10/Mines | Met a Derelict testing a Signal Generator 488 | -10/Mines | Found Signal Generator 501 | -10/Mines | Received a Mining Laser from a helpful Derelict 518 | -10/Mines | Assembled infested the area 530 | -10/Mines | Met a Derelict who couldn't figure out how to use a Trap Extractor 580 | -10/Mines | Assisted by bots powering up and referring to "LRC-V3" 596 | -10/Mines | Learned location of Recycling (-7) 599 | -10/Mines | Found a hidden stash of uninstalled traps 617 | -10/Mines | Found the Drone Emporium 619 | -10/Mines | Found Prototype Device 619 | -10/Mines | Identified Splice Drone Bay 746 | -10/Mines | Entered Materials 746 | -9/Materials | Accompanied by 5 allies 748 | -9/Materials | Reached level 3 748 | -9/Materials | Reached level 4 748 | -9/Materials | Upgraded with Utility slot (x1) 751 | -9/Materials | Led the pair of lost Derelicts to an unsafe place 914 | -9/Materials | Lost 5 allies 925 | -9/Materials | Reached level 5 957 | -9/Materials | Discovered new exit (range 17) 1000 | -9/Materials | Identified exit to Mines 1091 | -9/Materials | Entered Mines 1097 | -9/Mines | Learned location of Zion (-6) 1101 | -9/Mines | Discovered new exit (range 6) 1102 | -9/Mines | Identified exit to Materials 1125 | -9/Mines | Deemed a non-threat by the Exiles lab entrance 1125 | -9/Mines | Discovered new exit (range 5) 1126 | -9/Mines | Identified exit to Exiles 1141 | -9/Mines | Discovered exit to Materials (range 8) 1145 | -9/Mines | Learned Materials trap positions 1196 | -9/Mines | Learned Materials emergency access door positions 1236 | -9/Mines | Build established: Hacker-Sprinter 1249 | -9/Mines | Received a Rocket Launcher from a helpful Derelict 1249 | -9/Mines | Reached level 6 1336 | -9/Mines | Entered Exiles 1340 | -9/Exiles | Discovered new exit (range 17) 1345 | -9/Exiles | Met 8R-AWN 1349 | -9/Exiles | Met EX-HEX 1357 | -9/Exiles | Met EX-BIN 1359 | -9/Exiles | Met EX-DEC 1371 | -9/Exiles | Discovered new exit (range 10) 1373 | -9/Exiles | Identified exit to Mines 1374 | -9/Exiles | Entered Mines 1376 | -8/Mines | Discovered exit to Materials (range 13) 1412 | -8/Mines | Reached level 7 1452 | -8/Mines | Upgraded with Propulsion slot (x1) 1452 | -8/Mines | Upgraded with Utility slot (x1) 1486 | -8/Mines | Discovered exit to Materials (range 13) 1654 | -8/Mines | Entered Materials 1655 | -8/Materials | Loaded intel: 15 trap records 1656 | -8/Materials | Reached level 8 1656 | -8/Materials | Upgraded with Utility slot (x1) 1783 | -8/Materials | Reached level 9 1804 | -8/Materials | Core integrity fell below 50% 1945 | -8/Materials | Discovered new exit (range 3) 1945 | -8/Materials | Identified exit to Factory 1987 | -8/Materials | Identified exit to Garrison 1991 | -8/Materials | Entered Garrison 1991 | -8/Garrison | Accompanied by 1 ally 2004 | -8/Garrison | Installed Relay Interface Framework 2004 | -8/Garrison | Reached level 10 2004 | -8/Garrison | Upgraded with Power slot (x1) 2004 | -8/Garrison | Upgraded with Propulsion slot (x1) 2089 | -8/Garrison | Discovered exit to Factory (range 63) 2089 | -8/Garrison | Discovered exit to Factory (range 33) 2089 | -8/Garrison | Discovered exit to Factory (range 58) 2089 | -8/Garrison | Discovered new exit (range 54) 2089 | -8/Garrison | Garrison Relay disabled 2109 | -8/Garrison | Triggered checkpoint 2146 | -8/Garrison | Garrison Relay disabled 2178 | -8/Garrison | Entered Factory 2178 | -7/Factory | Accompanied by 1 ally 2179 | -7/Factory | Core integrity fell below 50% 2180 | -7/Factory | Reached level 11 2369 | -7/Factory | Identified exit to Garrison 2380 | -7/Factory | Discovered new exit (range 18) 2385 | -7/Factory | Identified exit to Factory 2636 | -7/Factory | Repaired VTOL Module 2683 | -7/Factory | Discovered new exit (range 17) 2688 | -7/Factory | Identified exit to Lower Caves 2787 | -7/Factory | Discovered exit to Factory (range 12) 2787 | -7/Factory | Sucked down chute 2787 | -7/Factory | Entered Waste 2788 | -7/Waste | Met a frightened Derelict 2789 | -7/Waste | Reached level 12 2802 | -7/Waste | EMP discharged 2818 | -7/Waste | Spotted C-40 Crusher 2843 | -7/Waste | Spotted C-40 Crusher 2853 | -7/Waste | Allies destroyed C-40 Crusher 2864 | -7/Waste | Spotted C-40 Crusher 2871 | -7/Waste | Spotted C-40 Crusher 2878 | -7/Waste | Spotted C-40 Crusher 2902 | -7/Waste | EMP discharged 2902 | -7/Waste | System corruption reached 10% 2905 | -7/Waste | Discovered new exit (range 18) 2910 | -7/Waste | Identified exit to Factory 2933 | -7/Waste | Entered Factory 2944 | -7/Factory | Identified exit to Storage 2985 | -7/Factory | Identified exit to Garrison 3060 | -7/Factory | Central database locked down 3060 | -7/Factory | Central database locked down 3099 | -7/Factory | Build established: Wizard-Sprinter 3242 | -7/Factory | Identified exit to Garrison 3302 | -7/Factory | Entered Garrison 3302 | -7/Garrison | Accompanied by 2 allies 3326 | -7/Garrison | Garrison Relay disabled 3326 | -7/Garrison | Reached level 13 3335 | -7/Garrison | Upgraded with Weapon slot (x1) 3336 | -7/Garrison | Triggered checkpoint 3346 | -7/Garrison | Triggered checkpoint 3477 | -7/Garrison | Discovered exit to Storage (range 11) 3485 | -7/Garrison | Garrison Relay disabled 3486 | -7/Garrison | Triggered checkpoint 3513 | -7/Garrison | Expanded RIF knowledge: Patrol Navigation 3572 | -7/Garrison | Triggered checkpoint 3598 | -7/Garrison | Triggered checkpoint 3634 | -7/Garrison | Triggered checkpoint 3682 | -7/Garrison | Reached level 14 3687 | -7/Garrison | Upgraded with Utility slot (x1) 3705 | -7/Garrison | Triggered checkpoint 3708 | -7/Garrison | Garrison Relay disabled 3713 | -7/Garrison | Discovered exit to Storage (range 50) 3713 | -7/Garrison | Discovered exit to Storage (range 7) 3713 | -7/Garrison | Discovered exit to Storage (range 59) 3716 | -7/Garrison | Lost 8 allies 3776 | -7/Garrison | Entered Storage 3823 | -7/Storage | Build established: Hacker-Sprinter 3841 | -7/Storage | Reached level 15 3887 | -7/Storage | Assisted by bots powering up and referring to "LRC-V3" 3910 | -7/Storage | Garrison activated, responded to threat 3976 | -7/Storage | Lost 10 allies 4012 | -7/Storage | Destroyed 7 combat bots 4022 | -7/Storage | Reached level 16 4026 | -7/Storage | Used back door to open Recycling access 4026 | -7/Storage | Discovered new exit (range 4) 4027 | -7/Storage | Identified exit to Recycling 4036 | -7/Storage | Identified exit to Garrison 4106 | -7/Storage | Discovered exit to Factory (range 12) 4148 | -7/Storage | Entered Garrison 4158 | -7/Garrison | Triggered checkpoint 4182 | -7/Garrison | Garrison Relay disabled 4263 | -7/Garrison | Discovered exit to Recycling (range 11) 4342 | -7/Garrison | Triggered checkpoint 4348 | -7/Garrison | Expanded RIF knowledge: Autooverride 4431 | -7/Garrison | Destroyed 7 combat bots 4438 | -7/Garrison | Triggered checkpoint 4443 | -7/Garrison | Discovered exit to Recycling (range 12) 4457 | -7/Garrison | Expanded RIF knowledge: Command Fork 4468 | -7/Garrison | Garrison Relay disabled 4474 | -7/Garrison | Triggered checkpoint 4493 | -7/Garrison | Triggered checkpoint 4548 | -7/Garrison | Garrison Relay disabled 4552 | -7/Garrison | Triggered checkpoint 4563 | -7/Garrison | Discovered exit to Recycling (range 33) 4563 | -7/Garrison | Discovered exit to Recycling (range 50) 4563 | -7/Garrison | Discovered exit to Recycling (range 26) 4570 | -7/Garrison | Triggered checkpoint 4595 | -7/Garrison | Reached level 17 4615 | -7/Garrison | Entered Recycling 4660 | -7/Recycling | Discovered new exit (range 13) 4743 | -7/Recycling | Identified exit to Factory 5432 | -7/Recycling | Build established: Commander-Sprinter 5657 | -7/Recycling | Entered Factory 5657 | -5/Factory | Accompanied by 23 allies 5659 | -5/Factory | Reached level 18 5739 | -5/Factory | Identified exit to Garrison 5785 | -5/Factory | Discovered new exit (range 6) 5787 | -5/Factory | Identified exit to Upper Caves 5891 | -5/Factory | Lost 3 allies 6013 | -5/Factory | Reached level 19 6145 | -5/Factory | Discovered exit to Upper Caves (range 16) 6375 | -5/Factory | Reached level 20 6404 | -5/Factory | Upgraded with Propulsion slot (x1) 6759 | -5/Factory | Cargo convoy interrupted 6759 | -5/Factory | Lost 4 allies 6803 | -5/Factory | Lost 3 allies 7001 | -5/Factory | Fabricated A-15 Conveyor (x1) 7057 | -5/Factory | Fabricated P-70 Sage (x2) 7114 | -5/Factory | Fabricated P-70 Sage (x2) 7171 | -5/Factory | Fabricated P-70 Sage (x2) 7229 | -5/Factory | Reached level 21 7231 | -5/Factory | Sage 6a assimilated hostile C-35 Carver 7539 | -5/Factory | Entered Garrison 7539 | -5/Garrison | Accompanied by 22 allies 7561 | -5/Garrison | Triggered checkpoint 7569 | -5/Garrison | Triggered checkpoint 7584 | -5/Garrison | Discovered new exit (range 53) 7584 | -5/Garrison | Discovered new exit (range 77) 7584 | -5/Garrison | Discovered new exit (range 66) 7635 | -5/Garrison | Reached level 22 7669 | -5/Garrison | Expanded RIF knowledge: Threat Obfuscation 7675 | -5/Garrison | Triggered checkpoint 7675 | -5/Garrison | Garrison Relay disabled 7677 | -5/Garrison | Triggered checkpoint 7715 | -5/Garrison | Triggered checkpoint 7721 | -5/Garrison | Spotted B-75 Beast 7722 | -5/Garrison | Spotted B-86 Titan 7736 | -5/Garrison | Assimilated Beast 6a with formatsys_high 7745 | -5/Garrison | Rewired B-75 Beast 7749 | -5/Garrison | Allies destroyed B-86 Titan 7774 | -5/Garrison | Garrison Relay disabled 7804 | -5/Garrison | Garrison Relay disabled 7817 | -5/Garrison | Identified exit to Factory 7947 | -5/Garrison | Entered Factory 7947 | -4/Factory | Accompanied by 20 allies 7949 | -4/Factory | Reached level 23 7994 | -4/Factory | Fabricated P-70 Sage (x2) 8065 | -4/Factory | Spotted B-86 Titan 8080 | -4/Factory | Reached level 24 8080 | -4/Factory | Allies destroyed B-86 Titan 8156 | -4/Factory | Identified exit to Research 8161 | -4/Factory | Sucked down chute 8161 | -4/Factory | Entered Waste 8166 | -4/Waste | Spotted C-40 Crusher 8176 | -4/Waste | EMP discharged 8176 | -4/Waste | Spotted C-40 Crusher 8182 | -4/Waste | Spotted C-40 Crusher 8188 | -4/Waste | Spotted C-40 Crusher 8188 | -4/Waste | Spotted C-40 Crusher 8190 | -4/Waste | Spotted C-40 Crusher 8191 | -4/Waste | 4 allies followed down the chute 8214 | -4/Waste | Destroyed C-40 Crusher 8239 | -4/Waste | Discovered new exit (range 14) 8243 | -4/Waste | Identified exit to Factory 8253 | -4/Waste | Entered Factory 8259 | -4/Factory | Identified exit to Garrison 8380 | -4/Factory | Entered Garrison 8380 | -4/Garrison | Accompanied by 1 ally 8398 | -4/Garrison | Triggered checkpoint 8436 | -4/Garrison | Garrison Relay disabled 8450 | -4/Garrison | Spotted B-86 Titan 8481 | -4/Garrison | Build established: Wizard-Sprinter 8482 | -4/Garrison | Triggered checkpoint 8508 | -4/Garrison | Triggered checkpoint 8539 | -4/Garrison | Lost 4 allies 8547 | -4/Garrison | Destroyed B-86 Titan 8597 | -4/Garrison | Discovered new exit (range 17) 8598 | -4/Garrison | Discovered new exit (range 66) 8598 | -4/Garrison | Discovered new exit (range 66) 8598 | -4/Garrison | Discovered new exit (range 15) 8598 | -4/Garrison | Discovered new exit (range 57) 8601 | -4/Garrison | Triggered checkpoint 8604 | -4/Garrison | Garrison Relay disabled 8657 | -4/Garrison | Expanded RIF knowledge: Code Merge 8663 | -4/Garrison | Rescued a captive Derelict 8665 | -4/Garrison | Triggered checkpoint 8685 | -4/Garrison | Garrison Relay disabled 8685 | -4/Garrison | Reached level 25 8696 | -4/Garrison | Identified exit to Factory 8700 | -4/Garrison | Triggered checkpoint 8719 | -4/Garrison | Entered Factory 8719 | -4/Factory | Accompanied by 4 allies 8790 | -4/Factory | Discovered new exit (range 11) 8830 | -4/Factory | Identified exit to Upper Caves 8830 | -4/Factory | Identified exit to Armory 8871 | -4/Factory | Identified exit to Garrison 8871 | -4/Factory | Entered Garrison 8874 | -4/Garrison | Expanded RIF knowledge: Signal Jamming 8907 | -4/Garrison | Triggered checkpoint 8932 | -4/Garrison | Garrison Relay disabled 8944 | -4/Garrison | Spotted B-86 Titan 8948 | -4/Garrison | Triggered checkpoint 8949 | -4/Garrison | Assimilated ARC 7a with formatsys_deep 8965 | -4/Garrison | Discovered exit to Research (range 16) 8969 | -4/Garrison | Garrison Relay disabled 9106 | -4/Garrison | Allies destroyed B-86 Titan 9149 | -4/Garrison | Triggered checkpoint 9180 | -4/Garrison | Lost 4 parts (2n2w) 9184 | -4/Garrison | Garrison Relay disabled 9191 | -4/Garrison | Triggered checkpoint 9203 | -4/Garrison | Discovered exit to Research (range 19) 9251 | -4/Garrison | Triggered checkpoint 9270 | -4/Garrison | Discovered exit to Research (range 12) 9273 | -4/Garrison | Triggered checkpoint 9288 | -4/Garrison | Garrison Relay disabled 9292 | -4/Garrison | Garrison Relay disabled 9345 | -4/Garrison | Lost 4 allies 9358 | -4/Garrison | Entered Research 9360 | -3/Research | Reached level 26 9360 | -3/Research | Reached level 27 9361 | -3/Research | Adv. Hacking Suite fried by hacking feedback 9757 | -3/Research | Lost 3 allies 9759 | -3/Research | Identified exit to Testing 9759 | -3/Research | Identified exit to Research 9780 | -3/Research | Entered another Research area 9782 | -2/Research | Reached level 28 9826 | -2/Research | Spotted B-90 Cyclops 9852 | -2/Research | Identified exit to Quarantine 9852 | -2/Research | Identified exit to Access 9852 | -2/Research | Reached level 29 10006 | -2/Research | Identified exit to Garrison 10010 | -2/Research | Entered Garrison 10015 | -2/Garrison | Garrison Relay disabled 10029 | -2/Garrison | Spotted B-90 Cyclops 10029 | -2/Garrison | Discovered new exit (range 30) 10029 | -2/Garrison | Discovered new exit (range 37) 10029 | -2/Garrison | Discovered new exit (range 49) 10037 | -2/Garrison | Triggered checkpoint 10041 | -2/Garrison | Phase Generator disabled 10046 | -2/Garrison | Expanded RIF knowledge: Zone Cloak 10048 | -2/Garrison | Identified exit to Research 10049 | -2/Garrison | Met a derelict Sapper fleeing the area 10052 | -2/Garrison | Garrison Relay disabled 10062 | -2/Garrison | Garrison Relay disabled 10102 | -2/Garrison | Entered Research 10102 | -2/Research | Accompanied by 4 allies 10105 | -2/Research | Discovered exit to Quarantine (range 19) 10233 | -2/Research | Reached level 30 10263 | -2/Research | Spotted B-90 Cyclops 10273 | -2/Research | Entered Access 10275 | -1/Access | Reached level 31 10279 | -1/Access | Identified exit to Command 10303 | -1/Access | Spotted B-99 Colossus 10385 | -1/Access | Entered Command 10387 | -1/Command | Reached level 32 10387 | -1/Command | Reached level 33 10620 | -1/Command | Build established: Wizard-Scout 10649 | -1/Command | Spotted B-99 Colossus 10659 | -1/Command | Disengaged cave seal 10659 | -1/Command | Wild derelicts emerged from the dark tunnel 10689 | -1/Command | Spotted B-99 Colossus 10890 | -1/Command | Reached level 34 10941 | -1/Command | Spotted Alpha 7 10949 | -1/Command | Spotted Alpha 7 11033 | -1/Command | Destroyed Alpha 7 11043 | -1/Command | Found Prototype Processor 11043 | -1/Command | Identified Exp. Target Analyzer 11053 | -1/Command | Spotted Striker 11053 | -1/Command | Spotted Striker 11053 | -1/Command | Spotted Executioner 11053 | -1/Command | Spotted Executioner 11053 | -1/Command | Spotted Executioner 11053 | -1/Command | Spotted Executioner 11054 | -1/Command | Spotted B-99 Colossus 11054 | -1/Command | Discovered new exit (range 16) 11060 | -1/Command | Spotted B-99 Colossus 11063 | -1/Command | Core integrity fell below 50% 11073 | -1/Command | Core integrity fell below 20% 11080 | -1/Command | Destroyed by Executioner with Helical Railgun Last Messages --------------- 11076_ Field strength at 94. 11077_ Wall collapses. 11077_ Field strength at 78. 11077_ Penetrated by Slug. 11077_ Slug penetrates Executioner. 11077_ Stasis field depleted. 11077_ Critical hit (Destroy). 11077_ Quantum Reactor destroyed. 11078_ Field strength at 33. 11078_ Penetrated by Slug. 11078_ Slug penetrates Striker. 11078_ Penetrated by Slug. 11078_ Slug penetrates Striker. 11078_ Critical hit (Impale). 11079_ Stasis field depleted. 11079_ K-01 Serf destroyed. 11080_ B-99 Colossus activates siege mode. 11080_ Slug penetrates Executioner. 11080_ Slug penetrates Reinforced Barrier. 11080_ Penetrated by Slug. Map ----- +----------------------------------------------------+ | #??# # # % # | | #??# # + # | | #??# # # # | | #??# """" """" # !=! + # | | #??# """" """ # != ###### % | | #??# """" """" # != #????# | | #??# """" """" # #????# %! | | #??# # #????# !#"# | | #??# # #????# # | | #######"###+"##################### %%# | | # " %% # | | # # # | | # # !! # | | # + % !! # | | # # ###########################"" # | | #= # #?????????????????????????##" # | | %/ " # #??????????????????????????## # | | % """ # #???????????????????????????# # | | # "T # #???????????????????????????# # | | # """ # #???????????????????????????# #### | | " "" # ##?????????????###########??# #??? | | # # # #########??? #??# #??? | | # # # ###;#;#;### #??# #??? | | ######### ; #;; ; ; ; ; ????# #??? | | #########! ##;^ %/E% BB """"""??????# #??? | | ^ !7%! /%% % E@ BB "??????# #??? | | *|p ;^%!!K^ ^ ^" "< "??????# #??? | | * pk% /^ ^ "???????????# #### | | !% /^ %E ^ "???????????# # | | ########+##;# ^ ^ BB "???????????# # | | ""# #### # #E# BB ^ ????????# # | | ""# ############ ????# | | ""# ######?????? ???# ## | | T# !! #????????????###########???# ## | | ""# !! #??????????????????????????# ## | | ""# ! #??????????????????????#####+## | | %""# #??????????????????????# # | | ### #??????????????????????# + | | #?# #??????????????????????#= # | | ## #?###### ###??????????????????????# ### | | # #???????#?????????????????????????# #?? | | # #?????????????????????????????????# !#?? | | # #?????????????????????????????????########?? | | # #??????????????????????????????????????????? | | # #??????????????????????????????????????????? | | # #??????????????????????????????????????????? | | # #?############?????????????????????????????? | | # #?# !!!#?????????????????????????????? | | # #?# !!!#?????????????????????????????? | | # #?# !!!#?????????????????????????????? | +----------------------------------------------------+ Best States ------------- Heat Dissipation 109 Energy Generation 56 Energy Capacity 690 Matter Stores 300 Matter Capacity 300 Sight Range 20 Robot Scan Range 10 Terrain Scan Density 110 ECM Strength 4 Jamming Range 16 Resistance: KI 40 Resistance: TH 40 Resistance: EX 40 Resistance: EM 20 Resistance: I 20 Resistance: S 20 Resistance: P 20 Phase Shifting 15 Evasion (%) 80 Target Analysis 10 Offensive Hacking 54 Defensive Hacking 64 Relay Coupler Types 4 Relay Coupler Value 196 Authchip Count 3 Trap Extractor Capacity 6 Item Schematics ----------------- Cld. Cesium-ion Thruster | -7/Factory | Hacked Lrn. Missile Launcher | -7/Recycling | Hacked Imp. Remote Datajack | -5/Factory | Hacked Adv. Corruption Screen | -5/Factory | Hacked Field Propulsion Array | -5/Factory | Hacked Robot Schematics ------------------ I-25 Savior | -8/Materials | Hacked B-36 Bruiser | -7/Factory | Hacked P-70 Sage | -7/Factory | Hacked I-36 Angel | -7/Factory | Hacked Y-54 Guardian | -7/Factory | Hacked M-14 Sweeper | -7/Factory | Hacked E-15 Imp | -1/Command | Hacked Fabricated ------------ A-15 Conveyor | x1 | -5/Factory | Preloaded P-70 Sage | x2 | -5/Factory | Authchip P-70 Sage | x2 | -5/Factory | Authchip P-70 Sage | x2 | -5/Factory | Authchip P-70 Sage | x2 | -4/Factory | Authchip Alien Tech Used ----------------- None Achievements -------------- Assimilation Complete Beloved Below Brute Force Error 47 Pwned Challenges ------------ None RPGLIKE | -11 -10 -10 -9 -9 -9 -8 -8 -8 -7 -7 -7 -7 -7 -7 -7 -5 -5 -4 -4 -4 -4 -4 -4 -3 -2 -2 -2 -1 -1 --------- Run | Yrd Mat Min Mat Min Exi Min Mat Gar Fac Was Fac Gar Sto Gar Rec Fac Gar Fac Was Fac Gar Fac Gar Res Res Gar Res Acc Com Levels Raised 33 | . 1 . 3 1 . 1 2 1 1 1 . 2 2 1 . 4 1 2 . . 1 . . 2 2 . 1 1 3 XP Earned 53706 | 4000 1800 500 4535 895 200 2026 2697 1750 1925 435 500 2867 2489 1390 407 6237 1614 2490 97 . 1186 182 964 2715 2260 1200 263 2000 4082 XP Spent 53345 | 3950 1550 . 4375 . . 2970 2380 2200 1500 1500 . 3000 2790 . 1725 5930 1400 1650 . . . . . 6000 1435 . 2900 1600 4490 Upgrades 117 | 9 3 . 10 . . 9 10 2 3 10 . 3 8 . 3 7 3 5 . . . . . 3 2 . 10 7 10 Power Slot 2 | 1 . . . . . . . 1 . . . . . . . . . . . . . . . . . . . . . Propulsion Slot 5 | 1 1 . . . . 1 . 1 . . . . . . . 1 . . . . . . . . . . . . . Utility Slot 5 | 1 . . 1 . . 1 1 . . . . 1 . . . . . . . . . . . . . . . . . Weapon Slot 2 | 1 . . . . . . . . . . . 1 . . . . . . . . . . . . . . . . . Core Integrity 36 | . . . . . . . 8 . . 10 . . . . . 2 . 1 . . . . . . 1 . 10 . 4 Heat Dissipation 14 | . . . . . . 7 . . . . . . 6 . . 1 . . . . . . . . . . . . . Energy Generation 1 | . . . . . . . . . . . . . . . . . . 1 . . . . . . . . . . . Energy Storage 2 | . . . . . . . . . . . . . . . . . . 2 . . . . . . . . . . . Mass Support 3 | 3 . . . . . . . . . . . . . . . . . . . . . . . . . . . . . Inventory Capacity 5 | . 2 . 2 . . . . . . . . . 1 . . . . . . . . . . . . . . . . Sight Range 4 | 1 . . 1 . . . . . . . . 1 . . . . . 1 . . . . . . . . . . . Sensor Range 5 | 1 . . 1 . . . . . . . . . 1 . 1 . . . . . . . . . . . . . 1 Terrain Scan Density 1 | . . . 1 . . . . . . . . . . . . . . . . . . . . . . . . . . Ranged Accuracy 4 | . . . . . . . . . 3 . . . . . . . 1 . . . . . . . . . . . . Hack Attack % 6 | . . . 3 . . . . . . . . . . . 1 1 . . . . . . . . 1 . . . . Hack Defense % 8 | . . . 1 . . . 1 . . . . . . . 1 2 . . . . . . . 3 . . . . . KI Resistance % 4 | . . . . . . . . . . . . . . . . . . . . . . . . . . . . 2 2 TH Resistance % 4 | . . . . . . . . . . . . . . . . . . . . . . . . . . . . 2 2 EX Resistance % 4 | . . . . . . . . . . . . . . . . . . . . . . . . . . . . 3 1 TH Damage % 2 | . . . . . . . . . . . . . . . . . 2 . . . . . . . . . . . . Protomatter Created 2244 | . 57 13 . 19 . 50 21 3 28 23 . 44 175 319 . 527 46 29 91 . 162 . 122 173 . . 55 . 287 Integrity Restored 9308 | . 70 39 343 43 . 192 51 . 84 165 . 276 966 840 294 1428 306 216 273 . 675 48 1039 756 . . 165 . 1039 Core 8440 | . 52 39 292 35 . 192 51 . 84 165 . 276 966 840 294 992 306 216 273 . 675 48 887 553 . . 165 . 1039 Parts 868 | . 18 . 51 8 . . . . . . . . . . . 436 . . . . . . 152 203 . . . . . Protomatter Decayed 1843 | . 31 84 62 3 . . 4 . . . . 17 205 . . 241 37 . . . 56 61 125 140 . 148 82 . 547 Game ------ Seed SapperConcussiveProtection Manual? 0 Play Time 04:49:58 Cumulative 65.6 hours Start 2024.05.12 @ 06:59:27 End 2024.05.13 @ 19:40:17 Sessions 5 Manual Loads 0 Difficulty Adventurer Special Mode Winter2019/RPGLIKE Game No. 42 Rogue 0 Adventurer 42 Explorer 0 Win Type - Total 2 Types 2/0/0/0/0/0/0/0/0 Lore% 44 Gallery% 44 Achievement% 55 Wizard Run 0 Options --------- Layout 2 ASCII 0 Keyboard 0 Movement Numpad Keybinds 0 Fullscreen 2 Font 24/Smallcaps Map View 50x44 Zoom Use 0% Tactical HUD 1 Map Filters NONE Filters NONE Steam 1 RUN: 1e4d24e8-3d7e-4258-ba62-1ac3349f5c04